[Event "German Masters Frauen 2019"]
[Site "Magdeburg"]
[Date "2019.05.29"]
[Round "4.1"]
[White "Osmanodja, Filiz"]
[Black "Lubbe, Melanie"]
[Result "1-0"]
[ECO "B24"]
[WhiteElo "2260"]
[BlackElo "2278"]
[Annotator "ChessBase"]
[PlyCount "173"]
[EventDate "2019.05.26"]
[EventType "tourn"]
[EventCountry "GER"]
[SourceTitle "playchess.com"]
[Source "ChessBase"]
[SourceQuality "1"]
[TimeControl "40/5400+30:1800+30"]

1. e4 {[%emt 0:00:00]} c5 {[%emt 0:00:00]} 2. Nc3 {[%emt 0:00:00]} Nc6 {[%emt 0:00:00]} 3. Bb5 {[%emt 0:00:00]} Nd4 {[%emt 0:01:21]} 4. Bc4 {[%emt 0:00:32]} e6 {[%emt 0:01:36]} 5. Nge2 {[%emt 0:02:40]} a6 {[%emt 0:04:24]} 6. a4 {[%emt 0:00:40]} Ne7 {[%emt 0:03:53]} 7. O-O {[%emt 0:02:36]} Nec6 {[%emt 0:09:30]} 8. f4 {[%emt 0:09:15]} Be7 {[%emt 0:04:44]} 9. d3 {[%emt 0:07:31]} O-O {[%emt 0:03:07]} 10. Be3 {[%emt 0:01:52]} Rb8 {[%emt 0:01:43]} 11. Ng3 {[%emt 0:06:57]} Nb4 {[%emt 0:15:00]} 12. Bxd4 {[%emt 0:16:19]} cxd4 {[%emt 0:00:08]} 13. Nce2 {[%emt 0:00:02]} d5 {[%emt 0:02:19]} 14. Bb3 {[%emt 0:00:20]} dxe4 {[%emt 0:00:50]} 15. Nxe4 {[%emt 0:05:42]} b6 {[%emt 0:05:02]} 16. N2g3 {[%emt 0:01:41]} Nd5 {[%emt 0:07:34]} 17. Bxd5 {[%emt 0:02:34]} Qxd5 {[%emt 0:02:46]} 18. Nh5 {[%emt 0:01:36]} f5 {[%emt 0:05:17]} 19. Nd2 {[%emt 0:02:58]} g6 {[%emt 0:04:03]} 20. Ng3 {[%emt 0:00:16]} e5 {[%emt 0:03:13]} 21. fxe5 {[%emt 0:00:43]} Qxe5 {[%emt 0:00:11]} 22. Re1 {[%emt 0:01:15]} Qc7 {[%emt 0:01:24]} 23. Nf3 {[%emt 0:02:08]} Bf6 {[%emt 0:00:42]} 24. Ne2 {[%emt 0:08:59]} Qd6 {[%emt 0:01:05]} 25. Qd2 {[%emt 0:00:24]} Bd7 {[%emt 0:00:50]} 26. Qf4 {[%emt 0:00:40]} Qxf4 {[%emt 0:04:57]} 27. Nxf4 {[%emt 0:00:02]} Rfe8 {[%emt 0:05:23]} 28. Nd5 {[%emt 0:01:50]} Bg7 {[%emt 0:03:28]} 29. b3 {[%emt 0:06:42]} Kf8 {[%emt 0:01:43]} 30. Rxe8+ {[%emt 0:01:51]} Bxe8 {[%emt 0:00:02]} 31. Nc7 {[%emt 0:01:15]} Bf7 {[%emt 0:04:23]} 32. Nxa6 {[%emt 0:08:09]} Rc8 {[%emt 0:00:01]} 33. Ra2 {[%emt 0:02:53]} Bf6 {[%emt 0:00:22]} 34. Nd2 {[%emt 0:03:09]} Rc6 {[%emt 0:01:26]} 35. Nc4 {[%emt 0:00:36]} Re6 {[%emt 0:01:32]} 36. Kf1 {[%emt 0:00:40]} Bd8 {[%emt 0:00:43]} 37. Ra1 {[%emt 0:01:07]} Rc6 {[%emt 0:01:45]} 38. Nb4 {[%emt 0:00:31]} Rf6 {[%emt 0:01:19]} 39. Ne5 {[%emt 0:01:07]} Be8 {[%emt 0:00:03]} 40. Nf3 {[%emt 0:01:43]} Rd6 {[%emt 0:00:55]} 41. Ne5 {[%emt 0:03:36]} g5 {[%emt 0:03:35]} 42. h3 {[%emt 0:05:15]} h5 {[%emt 0:09:27]} 43. Nc4 {[%emt 0:01:42]} Re6 {[%emt 0:08:07]} 44. Re1 {[%emt 0:01:02]} Rxe1+ {[%emt 0:02:59]} 45. Kxe1 {[%emt 0:00:01]} b5 {[%emt 0:00:25]} 46. axb5 {[%emt 0:01:10]} Bxb5 {[%emt 0:00:02]} 47. Na2 {[%emt 0:04:15]} Ke7 {[%emt 0:02:02]} 48. Nc1 {[%emt 0:06:11]} Ke6 {[%emt 0:00:17]} 49. Ne2 {[%emt 0:01:32]} Bf6 {[%emt 0:00:13]} 50. h4 {[%emt 0:05:02]} gxh4 {[%emt 0:02:17]} 51. Nf4+ {[%emt 0:00:04]} Kd7 {[%emt 0:00:45]} 52. Nxh5 {[%emt 0:01:25]} Bh8 {[%emt 0:00:23]} 53. Nf4 {[%emt 0:00:37]} Bg7 {[%emt 0:01:27]} 54. Ng6 {[%emt 0:01:10]} Bf6 {[%emt 0:00:17]} 55. Nce5+ {[%emt 0:00:04]} Kd6 {[%emt 0:00:47]} 56. Nf3 {[%emt 0:00:13]} Be8 {[%emt 0:02:24]} 57. Ngxh4 {[%emt 0:01:07]} Ke6 {[%emt 0:00:31]} 58. g3 {[%emt 0:00:16]} Bh5 {[%emt 0:00:32]} 59. Kf2 {[%emt 0:00:13]} Bg7 {[%emt 0:00:47]} 60. Ng2 {[%emt 0:00:55]} Be8 {[%emt 0:00:50]} 61. Nf4+ {[%emt 0:00:41]} Kd6 {[%emt 0:00:09]} 62. Ne2 {[%emt 0:01:54]} Kc5 {[%emt 0:00:29]} 63. Nh4 {[%emt 0:00:36]} Bd7 {[%emt 0:00:23]} 64. Kf3 {[%emt 0:00:01]} Be5 {[%emt 0:01:25]} 65. Ng6 {[%emt 0:01:24]} Bc6+ {[%emt 0:00:09]} 66. Kf2 {[%emt 0:00:02]} Bf6 {[%emt 0:00:12]} 67. Ngf4 {[%emt 0:00:08]} Bd7 {[%emt 0:00:19]} 68. Ke1 {[%emt 0:01:13]} Be5 {[%emt 0:01:27]} 69. Kd2 {[%emt 0:00:07]} Kb4 {[%emt 0:00:30]} 70. Ng6 {[%emt 0:01:07]} Bf6 {[%emt 0:00:44]} 71. Nef4 {[%emt 0:01:46]} Kc5 {[%emt 0:00:36]} 72. Kc1 {[%emt 0:00:43]} Bc6 {[%emt 0:00:46]} 73. Kb2 {[%emt 0:00:16]} Bf3 {[%emt 0:00:29]} 74. Ka3 {[%emt 0:00:58]} Kd6 {[%emt 0:00:49]} 75. b4 {[%emt 0:00:18]} Bc6 {[%emt 0:00:24]} 76. Kb3 {[%emt 0:00:09]} Bb5 {[%emt 0:00:17]} 77. Nh4 {[%emt 0:01:21]} Bxh4 {[%emt 0:01:26]} 78. gxh4 {[%emt 0:00:03]} Ke5 {[%emt 0:00:03]} 79. h5 {[%emt 0:00:47]} Be8 {[%emt 0:00:35]} 80. h6 {[%emt 0:00:32]} Bf7+ {[%emt 0:00:12]} 81. Kb2 {[%emt 0:00:27]} Bg8 {[%emt 0:00:05]} 82. b5 {[%emt 0:00:29]} Kd6 {[%emt 0:00:34]} 83. Ka3 {[%emt 0:00:18]} Kc5 {[%emt 0:00:19]} 84. Ka4 {[%emt 0:00:01]} Kb6 {[%emt 0:00:08]} 85. Nh5 {[%emt 0:01:11]} Bh7 {[%emt 0:00:13]} 86. Nf6 {[%emt 0:00:11]} f4 {[%emt 0:00:21]} 87. Nd5+ {[%emt 0:00:27]} 1-0

[Event "German Masters Frauen 2019"]
[Site "Magdeburg"]
[Date "2019.05.29"]
[Round "4.2"]
[White "Sieber, Fiona"]
[Black "Klek, Hanna Marie"]
[Result "1/2-1/2"]
[ECO "B12"]
[WhiteElo "2250"]
[BlackElo "2325"]
[Annotator "RC"]
[PlyCount "127"]
[EventDate "2019.05.26"]
[EventType "tourn"]
[EventCountry "GER"]
[SourceTitle "playchess.com"]
[Source "ChessBase"]
[SourceQuality "1"]
[TimeControl "40/5400+30:1800+30"]

1. e4 {[%emt 0:00:00]} c6 {[%emt 0:00:00]} 2. d4 {[%emt 0:00:00]} d5 {[%emt 0:00:00]} 3. e5 {[%emt 0:00:00]} Bf5 {[%emt 0:00:00]} 4. Nf3 {[%emt 0:00:00]} e6 {[%emt 0:00:00]} 5. Be2 {[%emt 0:00:00]} Nd7 {[%emt 0:00:00]} 6. O-O {[%emt 0:00:00]} Ne7 {[%emt 0:00:00]} 7. Nh4 {[%emt 0:00:12]} c5 {[%emt 0:00:06]} 8. c3 {[%emt 0:01:31]} Be4 {[%emt 0:00:08]} 9. Nd2 {[%emt 0:03:53]} Nc6 {[%emt 0:01:14]} 10. Nxe4 {[%emt 0:04:35]} dxe4 {[%emt 0:00:15]} 11. g3 {[%emt 0:05:45]} Qb6 {[%emt 0:00:24]} 12. Be3 {[%emt 0:08:09]} Rd8 {[%emt 0:01:28]} 13. b4 {[%emt 0:19:05]} cxd4 {[%emt 0:00:07]} 14. cxd4 {[%emt 0:01:33]} Ndxe5 {[%emt 0:00:07]} 15. Qa4 {[%emt 0:16:33]} Nd3 {[%emt 0:02:58]} 16. a3 {[%emt 0:03:02]} Ke7 {[%emt 0:00:09]} 17. d5 {[%emt 0:06:01]} Nd4 {[%emt 0:01:13]} 18. Bxd4 {[%emt 0:00:08]} Qxd4 {[%emt 0:00:14]} 19. dxe6 {[%emt 0:00:12]} fxe6 {[%emt 0:02:59]} 20. Rad1 {[%emt 0:01:53]} Rd5 {[%emt 0:21:23]} 21. Ng2 {[%emt 0:04:56]} g5 {[%emt 0:15:58]} 22. Ne3 {[%emt 0:04:51]} Rd7 {[%emt 0:00:23]} 23. Rfe1 {[%emt 0:05:50]} Kd8 {[%emt 0:15:49]} 24. Qb3 {[%emt 0:07:33]} Bg7 {[%emt 0:04:29]} 25. Qxe6 {[%emt 0:00:16]} Re8 {[%emt 0:00:06]} 26. Qg4 {[%emt 0:00:25]} Bf6 {[%emt 0:05:50]} 27. Qf5 {[%emt 0:01:42]} Qe5 {[%emt 0:04:24]} 28. Bg4 {[%emt 0:00:02]} Qxf5 {[%emt 0:01:35]} 29. Bxf5 {[%emt 0:00:03]} Rd6 {[%emt 0:09:08]} 30. Re2 {[%emt 0:03:08]} Kc7 {[%emt 0:06:18]} 31. Ng4 {[%emt 0:01:19]} Bd4 {[%emt 0:03:46]} 32. Bxe4 {[%emt 0:01:54]} h5 {[%emt 0:02:56]} 33. Bxd3 {[%emt 0:00:38]} Rxe2 {[%emt 0:00:01]} 34. Bxe2 {[%emt 0:00:02]} hxg4 {[%emt 0:00:08]} 35. Bxg4 {[%emt 0:00:12]} b5 {[%emt 0:00:11]} 36. Rd2 {[%emt 0:01:23]} Bf6 {[%emt 0:02:37]} 37. Re2 {[%emt 0:00:47]} Rd3 {[%emt 0:00:30]} 38. Re6 {[%emt 0:00:03]} Rd6 {[%emt 0:00:36]} 39. Re8 {[%emt 0:00:18]} Rd8 {[%emt 0:00:29]} 40. Rxd8 {[%emt 0:00:10]} Bxd8 {[%emt 0:00:05]} 41. Kf1 {[%emt 0:30:31]} Bf6 {[%emt 0:30:41]} 42. Ke2 {[%emt 0:00:00]} Bb2 {[%emt 0:00:00]} 43. Kd3 {[%emt 0:00:00]} Bxa3 {[%emt 0:00:00]} 44. Kc3 {[%emt 0:00:00]} Bc1 {[%emt 0:00:00]} 45. h4 {[%emt 0:00:00]} gxh4 {[%emt 0:00:00]} 46. gxh4 {[%emt 0:00:00]} Bh6 {[%emt 0:00:00]} 47. h5 {[%emt 0:00:00]} Kd6 {[%emt 0:00:00]} 48. Be2 {[%emt 0:00:00]} Bg7+ {[%emt 0:00:00]} 49. Kb3 {[%emt 0:00:00]} Kc6 {[%emt 0:00:00]} 50. Kc2 {[%emt 0:00:00]} Bf8 {[%emt 0:00:00]} 51. Kc3 {[%emt 0:00:00]} Bg7+ {[%emt 0:00:00]} 52. Kd3 {[%emt 0:00:00]} Kd5 {[%emt 0:00:00]} 53. Bg4 {[%emt 0:01:37]} Bf8 {[%emt 0:00:00]} 54. Bf3+ {[%emt 0:01:05]} Ke5 {[%emt 0:00:00]} 55. Kc3 {[%emt 0:00:05]} Kf4 {[%emt 0:00:00]} 56. Be2 {[%emt 0:00:04]} Kg5 {[%emt 0:00:00]} 57. Bd1 {[%emt 0:01:39]} Bd6 {[%emt 0:00:00]} 58. Bf3 {[%emt 0:00:18]} Kh6 {[%emt 0:00:00]} 59. Be2 {[%emt 0:00:08]} Kg5 {[%emt 0:00:00]} 60. Bxb5 {[%emt 0:00:53]} Kxh5 {[%emt 0:00:00]} 61. Be2+ {[%emt 0:00:16]} Kg5 {[%emt 0:00:00]} 62. Kc4 {[%emt 0:00:17]} Bc7 {[%emt 0:00:00]} 63. Kd5 {[%emt 0:00:44]} Kf4 {[%emt 0:00:00]} 64. f3 {[%emt 0:00:37]} 1/2-1/2

[Event "German Masters Frauen 2019"]
[Site "Magdeburg"]
[Date "2019.05.29"]
[Round "4.4"]
[White "Muetsch, Annmarie"]
[Black "Kachiani-Gersinska, Ketino"]
[Result "0-1"]
[ECO "B11"]
[WhiteElo "2266"]
[BlackElo "2305"]
[Annotator "ChessBase"]
[PlyCount "120"]
[EventDate "2019.05.26"]
[EventType "tourn"]
[EventCountry "GER"]
[SourceTitle "playchess.com"]
[Source "ChessBase"]
[SourceQuality "1"]
[TimeControl "40/5400+30:1800+30"]

1. e4 c6 2. Nc3 d5 3. Nf3 Bg4 4. h3 Bxf3 5. Qxf3 e6 {[%emt 0:22:24]} 6. d3 {[%emt 0:01:08]} Nd7 {[%emt 0:00:30]} 7. Bd2 {[%emt 0:00:30]} Qb6 {[%emt 0:00:30]} 8. O-O-O {[%emt 0:06:58]} Ngf6 {[%emt 0:08:31]} 9. g4 {[%emt 0:00:30]} h6 {[%emt 0:00:30]} 10. Qe2 {[%emt 0:00:30]} d4 11. Nb1 {[%emt 0:02:49]} Qa6 {[%emt 0:05:42]} 12. a3 {[%emt 0:04:46]} Nb6 {[%emt 0:07:18]} 13. h4 {[%emt 0:05:02]} Na4 {[%emt 0:00:55]} 14. Bh3 {[%emt 0:00:35]} Qb5 {[%emt 0:00:17]} 15. b3 {[%emt 0:05:57]} Nc5 {[%emt 0:12:35]} 16. g5 {[%emt 0:00:30]} Nfxe4 {[%emt 0:01:00]} 17. b4 {[%emt 0:11:52]} Nxd2 {[%emt 0:05:35]} 18. Rxd2 {[%emt 0:06:15]} hxg5 {[%emt 0:08:34]} 19. hxg5 {[%emt 0:00:15]} Na4 {[%emt 0:01:51]} 20. g6 {[%emt 0:02:33]} Qd5 {[%emt 0:04:42]} 21. gxf7+ {[%emt 0:03:32]} Kd8 22. Qe4 Qxe4 {[%emt 0:04:19]} 23. dxe4 {[%emt 0:00:36]} Bd6 {[%emt 0:00:00]} 24. Rxd4 {[%emt 0:04:51]} Ke7 {[%emt 0:00:25]} 25. e5 {[%emt 0:12:23]} Bxe5 {[%emt 0:04:21]} 26. Re4 {[%emt 0:00:00]} Bb2+ 27. Kd2 Rad8+ {[%emt 0:03:36]} 28. Ke2 {[%emt 0:02:39]} Rh6 29. c4 Kxf7 {[%emt 0:01:49]} 30. Bg2 {[%emt 0:12:23]} Rxh1 {[%emt 0:01:40]} 31. Bxh1 {[%emt 0:00:05]} Bf6 {[%emt 0:02:14]} 32. c5 Nb2 {[%emt 0:00:08]} 33. Nd2 {[%emt 0:05:44]} Na4 {[%emt 0:02:06]} 34. Nb1 Rh8 35. Bf3 {[%emt 0:02:53]} Rd8 {[%emt 0:01:46]} 36. Bg4 {[%emt 0:01:31]} e5 {[%emt 0:02:18]} 37. Re3 a5 {[%emt 0:00:49]} 38. Nd2 {[%emt 0:05:15]} axb4 {[%emt 0:00:30]} 39. axb4 {[%emt 0:00:13]} Rd4 {[%emt 0:00:37]} 40. Bc8 {[%emt 0:02:17]} Rxb4 {[%emt 0:00:00]} 41. Rb3 Rb5 42. Rxb5 {[%emt 0:11:22]} cxb5 {[%emt 0:09:13]} 43. Nb3 {[%emt 0:01:22]} Be7 {[%emt 0:00:08]} 44. Bxb7 {[%emt 0:01:12]} Nxc5 {[%emt 0:00:05]} 45. Nxc5 {[%emt 0:00:06]} Bxc5 {[%emt 0:00:03]} 46. f3 {[%emt 0:00:16]} Ke6 {[%emt 0:00:18]} 47. Kd3 {[%emt 0:01:59]} Kf5 {[%emt 0:00:26]} 48. Bc6 {[%emt 0:03:58]} b4 {[%emt 0:00:04]} 49. Bd5 {[%emt 0:00:04]} Kf4 {[%emt 0:00:07]} 50. Ke2 {[%emt 0:00:16]} g5 {[%emt 0:00:13]} 51. Kd3 {[%emt 0:00:50]} Bf8 {[%emt 0:00:46]} 52. Ke2 {[%emt 0:01:46]} Bd6 {[%emt 0:05:24]} 53. Kf2 {[%emt 0:02:56]} e4 {[%emt 0:00:50]} 54. Bxe4 {[%emt 0:07:40]} g4 {[%emt 0:00:12]} 55. Ke2 {[%emt 0:02:09]} g3 {[%emt 0:00:39]} 56. Bd5 {[%emt 0:01:02]} Bc5 {[%emt 0:00:23]} 57. Kf1 {[%emt 0:00:11]} Bd6 {[%emt 0:02:27]} 58. Ke2 {[%emt 0:00:38]} Ke5 {[%emt 0:00:23]} 59. Bf7 {[%emt 0:00:47]} Kd4 {[%emt 0:00:08]} 60. Be6 {[%emt 0:00:24]} Bf4 {[%emt 0:00:16]} 0-1

[Event "German Masters Frauen 2019"]
[Site "Magdeburg"]
[Date "2019.05.30"]
[Round "5.1"]
[White "Kachiani-Gersinska, Ketino"]
[Black "Osmanodja, Filiz"]
[Result "1/2-1/2"]
[ECO "A06"]
[WhiteElo "2305"]
[BlackElo "2260"]
[Annotator "ChessBase"]
[PlyCount "103"]
[EventDate "2019.05.26"]
[EventType "tourn"]
[EventCountry "GER"]
[SourceTitle "playchess.com"]
[Source "ChessBase"]
[SourceQuality "1"]
[TimeControl "40/5400+30:1800+30"]

1. Nf3 {[%emt 0:00:37]} d5 {[%emt 0:00:00]} 2. g3 {[%emt 0:00:11]} g6 {[%emt 0:00:00]} 3. Bg2 {[%emt 0:00:39]} Bg7 {[%emt 0:00:00]} 4. d4 {[%emt 0:07:18]} c5 {[%emt 0:01:52]} 5. c3 {[%emt 0:02:01]} Nf6 {[%emt 0:17:03]} 6. O-O {[%emt 0:00:55]} Ne4 {[%emt 0:04:04]} 7. dxc5 {[%emt 0:21:03]} Nxc5 {[%emt 0:07:47]} 8. Be3 {[%emt 0:01:42]} Ne4 {[%emt 0:07:13]} 9. Nbd2 {[%emt 0:03:24]} Nf6 {[%emt 0:02:54]} 10. Nb3 {[%emt 0:16:22]} O-O {[%emt 0:00:26]} 11. Qc1 {[%emt 0:02:29]} Ng4 {[%emt 0:06:04]} 12. Bg5 {[%emt 0:03:16]} Nc6 {[%emt 0:04:40]} 13. h3 {[%emt 0:02:54]} Nf6 {[%emt 0:00:25]} 14. Bh6 {[%emt 0:01:38]} e5 {[%emt 0:04:24]} 15. Rd1 {[%emt 0:04:55]} a5 {[%emt 0:13:38]} 16. a4 {[%emt 0:09:57]} Re8 {[%emt 0:12:27]} 17. Bg5 {[%emt 0:06:08]} Qb6 {[%emt 0:00:56]} 18. Ra3 {[%emt 0:04:51]} Ne4 {[%emt 0:11:29]} 19. Be3 {[%emt 0:00:50]} Qd8 {[%emt 0:00:23]} 20. Nfd2 {[%emt 0:03:20]} Nf6 {[%emt 0:00:32]} 21. Nf3 {[%emt 0:00:21]} Qc7 {[%emt 0:01:02]} 22. Ra1 {[%emt 0:00:52]} b6 {[%emt 0:00:40]} 23. Bh6 {[%emt 0:00:48]} Ba6 {[%emt 0:00:25]} 24. Bxg7 {[%emt 0:00:09]} Kxg7 {[%emt 0:00:02]} 25. Re1 {[%emt 0:01:00]} e4 {[%emt 0:01:18]} 26. Nfd4 {[%emt 0:00:31]} e3 {[%emt 0:00:46]} 27. f4 {[%emt 0:01:28]} h5 {[%emt 0:00:10]} 28. Rf1 {[%emt 0:00:23]} h4 {[%emt 0:01:15]} 29. g4 {[%emt 0:00:09]} Ne4 {[%emt 0:00:43]} 30. Nxc6 {[%emt 0:01:25]} Qxc6 {[%emt 0:00:22]} 31. Qxe3 {[%emt 0:00:06]} Ng3 {[%emt 0:00:45]} 32. Qd4+ {[%emt 0:00:06]} Kg8 {[%emt 0:01:22]} 33. Qxd5 {[%emt 0:00:21]} Qxd5 {[%emt 0:00:23]} 34. Bxd5 {[%emt 0:00:02]} Rad8 {[%emt 0:00:23]} 35. Bf3 {[%emt 0:02:46]} Bxe2 {[%emt 0:00:57]} 36. Bxe2 {[%emt 0:00:09]} Rxe2 {[%emt 0:00:19]} 37. Rf2 {[%emt 0:00:10]} Rde8 {[%emt 0:00:45]} 38. Nd4 {[%emt 0:00:16]} Re1+ {[%emt 0:00:18]} 39. Rxe1 {[%emt 0:00:05]} Rxe1+ {[%emt 0:00:01]} 40. Kg2 {[%emt 0:00:04]} Ra1 {[%emt 0:01:06]} 41. Nf3 {[%emt 0:30:40]} Rxa4 {[%emt 0:01:36]} 42. Nxh4 {[%emt 0:00:00]} Ne4 {[%emt 0:00:10]} 43. Re2 {[%emt 0:00:00]} Nd6 {[%emt 0:07:28]} 44. f5 {[%emt 0:00:00]} gxf5 {[%emt 0:04:20]} 45. Rd2 {[%emt 0:00:00]} Nc4 {[%emt 0:02:52]} 46. Rd8+ {[%emt 0:00:00]} Kh7 {[%emt 0:00:03]} 47. b3 {[%emt 0:00:00]} Ra2+ {[%emt 0:00:55]} 48. Kg3 {[%emt 0:00:00]} Rd2 {[%emt 0:09:01]} 49. Rb8 {[%emt 0:00:00]} Rd3+ {[%emt 0:01:03]} 50. Kf4 {[%emt 0:00:00]} Ne3 {[%emt 0:03:01]} 51. Nxf5 {[%emt 0:00:00]} Nxf5 {[%emt 0:00:02]} 52. Ke4 1/2-1/2

[Event "German Masters Frauen 2019"]
[Site "Magdeburg"]
[Date "2019.05.30"]
[Round "5.2"]
[White "Heinemann, Josefine"]
[Black "Muetsch, Annmarie"]
[Result "1-0"]
[ECO "B48"]
[WhiteElo "2227"]
[BlackElo "2266"]
[Annotator "ChessBase"]
[PlyCount "97"]
[EventDate "2019.05.26"]
[EventType "tourn"]
[EventCountry "GER"]
[SourceTitle "playchess.com"]
[Source "ChessBase"]
[SourceQuality "1"]
[TimeControl "40/5400+30:1800+30"]

1. e4 {[%emt 0:00:00]} c5 {[%emt 0:00:00]} 2. Nf3 {[%emt 0:00:00]} e6 {[%emt 0:00:00]} 3. d4 {[%emt 0:00:00]} cxd4 {[%emt 0:00:00]} 4. Nxd4 {[%emt 0:00:00]} Nc6 {[%emt 0:00:00]} 5. Nc3 {[%emt 0:00:00]} Qc7 {[%emt 0:00:02]} 6. Be3 {[%emt 0:00:02]} a6 {[%emt 0:00:07]} 7. Qf3 {[%emt 0:00:08]} Ne5 {[%emt 0:00:25]} 8. Qg3 {[%emt 0:00:05]} b5 {[%emt 0:00:14]} 9. O-O-O {[%emt 0:04:40]} Nf6 {[%emt 0:00:10]} 10. f4 {[%emt 0:00:40]} Neg4 {[%emt 0:00:08]} 11. Bg1 {[%emt 0:01:11]} h5 {[%emt 0:00:10]} 12. e5 {[%emt 0:02:38]} b4 {[%emt 0:00:15]} 13. Nb1 {[%emt 0:00:13]} Nd5 {[%emt 0:01:40]} 14. h3 {[%emt 0:05:46]} Nh6 {[%emt 0:00:17]} 15. Bd3 {[%emt 0:00:10]} g6 {[%emt 0:04:08]} 16. Nd2 {[%emt 0:12:47]} Nf5 {[%emt 0:09:43]} 17. Nxf5 {[%emt 0:09:57]} gxf5 {[%emt 0:00:07]} 18. Kb1 {[%emt 0:01:08]} h4 {[%emt 0:08:36]} 19. Qf2 {[%emt 0:02:09]} a5 {[%emt 0:03:03]} 20. Nb3 {[%emt 0:03:25]} a4 {[%emt 0:04:20]} 21. Nd4 {[%emt 0:00:04]} a3 {[%emt 0:06:16]} 22. Nb5 {[%emt 0:05:17]} Qa5 {[%emt 0:07:35]} 23. Bc4 {[%emt 0:08:50]} Bb7 {[%emt 0:26:26]} 24. b3 {[%emt 0:08:46]} Rc8 {[%emt 0:03:57]} 25. Nd6+ {[%emt 0:04:17]} Bxd6 {[%emt 0:00:19]} 26. Bxd5 {[%emt 0:00:10]} Bxd5 {[%emt 0:03:15]} 27. exd6 {[%emt 0:00:04]} f6 {[%emt 0:02:05]} 28. Rd2 {[%emt 0:04:32]} Qb5 {[%emt 0:02:20]} 29. Qe1 {[%emt 0:03:25]} Kf7 {[%emt 0:05:30]} 30. Be3 {[%emt 0:06:25]} Qc6 {[%emt 0:01:05]} 31. Qf2 {[%emt 0:02:13]} Be4 {[%emt 0:01:17]} 32. Rg1 {[%emt 0:02:56]} Rhg8 {[%emt 0:03:32]} 33. Qe2 {[%emt 0:00:13]} Rg3 {[%emt 0:02:19]} 34. Bd4 {[%emt 0:01:22]} Rg6 {[%emt 0:01:49]} 35. Qd1 {[%emt 0:03:51]} Qb5 {[%emt 0:02:04]} 36. Qh5 {[%emt 0:02:33]} e5 {[%emt 0:00:28]} 37. fxe5 {[%emt 0:00:15]} fxe5 {[%emt 0:00:04]} 38. Ba1 {[%emt 0:02:23]} Rxc2 {[%emt 0:04:23]} 39. Rxc2 {[%emt 0:01:04]} Bxc2+ {[%emt 0:00:05]} 40. Kxc2 {[%emt 0:00:12]} Qc5+ {[%emt 0:00:05]} 41. Kd2 {[%emt 0:30:40]} Qf2+ {[%emt 0:17:02]} 42. Kd3 {[%emt 0:00:00]} e4+ {[%emt 0:02:56]} 43. Kc4 {[%emt 0:00:00]} Qc2+ {[%emt 0:00:30]} 44. Kxb4 {[%emt 0:00:00]} Qd2+ {[%emt 0:00:07]} 45. Ka4 {[%emt 0:00:00]} Qxd6 {[%emt 0:01:46]} 46. Qxf5+ {[%emt 0:00:00]} Kg8 {[%emt 0:00:18]} 47. Bc3 {[%emt 0:00:00]} Qc6+ {[%emt 0:01:16]} 48. Kxa3 {[%emt 0:00:00]} d5 {[%emt 0:00:52]} 49. Kb2 {[%emt 0:00:00]} 1-0

[Event "German Masters Frauen 2019"]
[Site "Magdeburg"]
[Date "2019.05.30"]
[Round "5.3"]
[White "Klek, Hanna Marie"]
[Black "Hoolt, Sarah"]
[Result "0-1"]
[ECO "C02"]
[WhiteElo "2325"]
[BlackElo "2321"]
[Annotator "ChessBase"]
[PlyCount "72"]
[EventDate "2019.05.26"]
[EventType "tourn"]
[EventCountry "GER"]
[SourceTitle "playchess.com"]
[Source "ChessBase"]
[SourceQuality "1"]
[TimeControl "40/5400+30:1800+30"]

1. e4 {[%emt 0:00:00]} e6 {[%emt 0:00:00]} 2. d4 {[%emt 0:00:00]} d5 {[%emt 0:00:00]} 3. e5 {[%emt 0:00:00]} c5 {[%emt 0:00:35]} 4. c3 {[%emt 0:00:00]} Nc6 {[%emt 0:00:15]} 5. Nf3 {[%emt 0:00:00]} Bd7 {[%emt 0:00:41]} 6. Be2 {[%emt 0:01:56]} Nge7 {[%emt 0:00:18]} 7. O-O {[%emt 0:01:17]} Ng6 {[%emt 0:00:51]} 8. Be3 {[%emt 0:05:34]} Rc8 {[%emt 0:07:16]} 9. Kh1 {[%emt 0:12:28]} cxd4 {[%emt 0:06:24]} 10. cxd4 {[%emt 0:00:10]} f6 {[%emt 0:00:08]} 11. exf6 {[%emt 0:02:26]} Qxf6 {[%emt 0:01:05]} 12. Qd2 {[%emt 0:09:26]} Bd6 {[%emt 0:01:48]} 13. Nc3 {[%emt 0:00:51]} O-O {[%emt 0:04:01]} 14. Rfe1 {[%emt 0:06:06]} Nf4 {[%emt 0:06:33]} 15. Bf1 {[%emt 0:00:27]} Be8 {[%emt 0:02:37]} 16. g3 {[%emt 0:09:53]} Bh5 {[%emt 0:06:02]} 17. Ng1 {[%emt 0:01:34]} Ng6 {[%emt 0:03:36]} 18. Bh3 {[%emt 0:07:07]} Rce8 {[%emt 0:02:39]} 19. a3 {[%emt 0:05:45]} Nge7 {[%emt 0:09:32]} 20. Bg5 {[%emt 0:06:54]} Qxf2 {[%emt 0:11:39]} 21. Qxf2 {[%emt 0:01:46]} Rxf2 {[%emt 0:00:07]} 22. Rxe6 {[%emt 0:00:07]} Nxd4 {[%emt 0:13:38]} 23. Rxd6 {[%emt 0:00:29]} Bf3+ {[%emt 0:01:25]} 24. Nxf3 {[%emt 0:00:06]} Nxf3 {[%emt 0:00:04]} 25. Bg2 {[%emt 0:00:18]} Nxg5 {[%emt 0:02:10]} 26. Re1 {[%emt 0:04:18]} Kf8 {[%emt 0:01:06]} 27. b4 {[%emt 0:07:12]} Nf3 {[%emt 0:05:59]} 28. Rf1 {[%emt 0:08:23]} Rxf1+ {[%emt 0:00:28]} 29. Bxf1 {[%emt 0:00:01]} Rc8 {[%emt 0:02:19]} 30. Ne2 {[%emt 0:04:11]} Rc2 {[%emt 0:01:07]} 31. Kg2 {[%emt 0:02:05]} Ng5 {[%emt 0:03:24]} 32. Rd7 {[%emt 0:00:40]} Nf5 {[%emt 0:01:14]} 33. h4 {[%emt 0:01:46]} Ne4 {[%emt 0:00:52]} 34. Kf3 {[%emt 0:01:13]} Nfd6 {[%emt 0:04:29]} 35. Bh3 {[%emt 0:00:46]} Ra2 {[%emt 0:00:31]} 36. Nd4 {[%emt 0:00:43]} Rf2+ {[%emt 0:00:42]} 0-1